Workbook

Sheet Event Budget
A1: Expenses | E1: Income
B2: Estimated | C2: Actual | F2: Estimated | G2: Actual
B3: =SUM(B11,B18,B26,B32,B39) -> 5550 | C3: =SUM(C11,C18,C26,C32,C39) -> 4515 | F3: =SUM(I10,I17,I24) -> 5675 | G3: =SUM(J10,J17,J24) -> 6675
E5: Registration
A6: Site | B6: Estimated | C6: Actual | E6: Estimated # | F6: Actual # | G6: Items | H6: Revenue per | I6: Estimated | J6: Actual
A7: Room Rental | B7: 2500 | C7: 2250 | E7: 65 | F7: 60 | G7: Regular | H7: 15 | I7: =E7*H7 -> 975 | J7: =F7*H7 -> 900
A8: Site staff | B8: 0 | C8: 0 | E8: 25 | F8: 30 | G8: Students | H8: 20 | I8: =E8*H8 -> 500 | J8: =F8*H8 -> 600
A9: Audio Visual | B9: 500 | C9: 0 | E9: 10 | F9: 15 | G9: Other | H9: 5 | I9: =E9*H9 -> 50 | J9: =F9*H9 -> 75
A10: Furniture | B10: 0 | C10: 0 | E10: =SUM(E7:E9) -> 100 | F10: =SUM(F7:F9) -> 105 | I10: =SUM(I7:I9) -> 1525 | J10: =SUM(J7:J9) -> 1575
A11: Total | B11: =SUBTOTAL(109,Table1[Estimated]) -> 3000 | C11: =SUBTOTAL(109,Table1[Actual]) -> 2250
E12: Exhibitors
A13: Food & Beverage | B13: Estimated | C13: Actual | E13: Estimated # | F13: Actual # | G13: Items | H13: Revenue per | I13: Estimated | J13: Actual
A14: Breakfast | B14: 2000 | C14: 1890 | E14: 5 | F14: 6 | G14: Large booths | H14: 500 | I14: =E14*H14 -> 2500 | J14: =F14*H14 -> 3000
A15: Lunch | B15: 0 | C15: 0 | E15: 4 | F15: 5 | G15: Medium booths | H15: 300 | I15: =E15*H15 -> 1200 | J15: =F15*H15 -> 1500
A16: Break 1 | B16: 0 | C16: 0 | E16: 3 | F16: 4 | G16: Small booths | H16: 150 | I16: =E16*H16 -> 450 | J16: =F16*H16 -> 600
A17: Break 2 | B17: 0 | C17: 0 | E17: =SUM(E14:E16) -> 12 | F17: =SUM(F14:F16) -> 15 | I17: =SUM(I14:I16) -> 4150 | J17: =SUM(J14:J16) -> 5100
A18: Total | B18: =SUBTOTAL(109,Table5[Estimated]) -> 2000 | C18: =SUBTOTAL(109,Table5[Actual]) -> 1890
E19: Miscellaneous
A20: Program | B20: Estimated | C20: Actual | E20: Estimated # | F20: Actual # | G20: Items | H20: Revenue per | I20: Estimated | J20: Actual
A21: Speaker fees / honoraria | B21: 0 | C21: 0 | E21: 0 | F21: 0 | G21: Sponsorships | H21: 0 | I21: =E21*H21 -> 0 | J21: =F21*H21 -> 0
A22: Speaker Travel & Living | B22: 100 | C22: 100 | E22: 0 | F22: 0 | G22: SURA | H22: 0 | I22: =E22*H22 -> 0 | J22: =F22*H22 -> 0
A23: Speaker Gifts | B23: 250 | C23: 200 | E23: 0 | F23: 0 | H23: 0 | I23: =E23*H23 -> 0 | J23: =F23*H23 -> 0
A24: Program Brochure | B24: 0 | C24: 0 | E24: =SUM(E21:E23) -> 0 | F24: =SUM(F21:F23) -> 0 | I24: =SUM(I21:I23) -> 0 | J24: =SUM(J21:J23) -> 0
A25: Other | B25: 0 | C25: 0
A26: Total | B26: =SUBTOTAL(109,Table6[Estimated]) -> 350 | C26: =SUBTOTAL(109,Table6[Actual]) -> 300
A28: Registration | B28: Estimated | C28: Actual | I28: Type | J28: Estimated | K28: Actual
A29: Registration service fees | B29: 0 | C29: 0 | I29: Income | J29: =F3 -> 5675 | K29: =G3 -> 6675
A30: Badges | B30: 100 | C30: 50 | I30: Expenses | J30: =B3 -> 5550 | K30: =C3 -> 4515
A31: Attendee Kits/Gifts | B31: 0 | C31: 0 | I31: P&L | J31: =SUM(J29:J30) -> 11225 | K31: =SUM(K29:K30) -> 11190
A32: Total | B32: =SUBTOTAL(109,Table3[Estimated]) -> 100 | C32: =SUBTOTAL(109,Table3[Actual]) -> 50
A34: Miscellaneous | B34: Estimated | C34: Actual
A35: Committee Expenses | B35: 100 | C35: 25
A36: Transportation | B36: 0 | C36: 0
A39: Total | B39: =SUBTOTAL(109,Table4[Estimated]) -> 100 | C39: =SUBTOTAL(109,Table4[Actual]) -> 25
